lending/lending_fUSD_20250621
["ID","MTS","AMOUNT","RATE_DAILY","PERIOD"]
[366833003,1750494638697,-3376.46375566,0.00020843,2]
[366833004,1750494638706,-3501.39291462,0.00020898,2]
[366833005,1750494638714,-895.34,0.00020951,2]
[366833006,1750494638724,-250.56,0.00020951,2]
[366833007,1750494638735,-301.11,0.00020951,2]
[366833008,1750494638744,-253.4,0.00020951,2]
[366833009,1750494638754,-226.01949288,0.00020953,2]
[366833010,1750494638816,-1370.813246,0.00020953,2]
[366833011,1750494638828,-468.40396298,0.00020953,2]
[366833012,1750494638840,-1565.7077506,0.00020953,2]
[366833013,1750494638850,-195.89,0.00020986,2]
[366833014,1750494638859,-400.0,0.00021,2]
[366833015,1750494638869,-2258.0,0.00021001,2]
[366833016,1750494638879,-3765.2893972,0.00021008,2]
[366833017,1750494638888,-159.83,0.00021097,2]
[366833018,1750494638898,-200.61444644,0.00021166,4]
[366833019,1750494638944,-539.269297,0.00021166,4]
[366833020,1750494638955,-380.94205241,0.00021166,4]
[366833021,1750494639004,-21.09937215,0.00021166,4]
[366833022,1750494639013,-978.85136905,0.00021256,2]
[366833027,1750494640398,-150.0,0.00020676,2]
[366833028,1750494640408,-150.0,0.00020984,2]
[366833029,1750494640418,-16.64350798,0.00021067,2]
[366833030,1750494640444,-133.35649202,0.00021067,2]
[366833031,1750494640454,-812.14863095,0.00021256,2]
[366833032,1750494640465,-651.83795298,0.00021331,2]
[366833033,1750494640475,-392.77692406,0.00021352,2]
[366833034,1750494640486,-688.04722663,0.00021352,2]
[366833054,1750494642616,-265.0,0.00018073,2]
[366833055,1750494642626,-150.0,0.0002028,2]
[366833056,1750494642636,-919.17584931,0.00021352,2]
[366833057,1750494642646,-1000.0,0.00021357,2]
[366833058,1750494642657,-202.0,0.00021361,6]
[366833059,1750494642667,-102.47415069,0.00021377,2]
[366833063,1750494743338,506.2,0.00011501,2]
[366833065,1750494839949,647.0,0.000247,120]
[366833066,1750494842425,209.90091991,0.000247,120]
[366833067,1750495131524,909.64965611,0.000247,120]
[366833068,1750495265970,201.0,0.00011501,2]
[366833073,1750495763062,15528.0,0.00022,30]
[366833074,1750495831604,-428.48,0.00013699,2]
[366833075,1750495831615,-250.0,0.0001372,2]
[366833076,1750495831624,-300.0,0.00013741,2]
[366833077,1750495831634,-300.0,0.00013784,2]
[366833078,1750495831643,-300.0,0.00014284,2]
[366833079,1750495831653,-250.0,0.00015,2]
[366833080,1750495831664,-300.0,0.00015068,2]
[366833081,1750495831676,-250.0,0.00015068,2]
[366833082,1750495831687,-300.0,0.00015068,2]
[366833083,1750495831697,-250.0,0.00015068,2]
[366833084,1750495831707,-203.0,0.00015073,2]
[366833085,1750495831717,-203.0,0.00016009,3]
[366833086,1750495831727,-167.84,0.00016573,2]
[366833087,1750495831738,-151.0,0.00016705,2]
[366833088,1750495831748,-151.0,0.00016706,2]
[366833089,1750495831758,-151.0,0.00016708,2]
[366833090,1750495831768,-151.0,0.00016736,2]
[366833091,1750495831778,-203.0,0.00016945,4]
[366833092,1750495831787,-300.0,0.00017,2]
[366833093,1750495831797,-1200.0,0.00017133,2]
[366833094,1750495831806,-233.0,0.00017134,2]
[366833095,1750495831816,-1957.856,0.00017135,2]
[366833096,1750495831826,-207.4,0.00017135,2]
[366833097,1750495831837,-2030.296672,0.0001719,2]
[366833098,1750495831846,-2105.41764886,0.00017245,2]
[366833099,1750495831855,-2183.31810187,0.000173,2]
[366833100,1750495831864,-2264.10087164,0.00017355,2]
[366833101,1750495831873,-2347.87260389,0.0001741,2]
[366833102,1750495831883,-2434.74389024,0.00017465,2]
[366833103,1750495831893,-2524.82941417,0.0001752,2]
[366833104,1750495831903,-2618.2481025,0.00017575,2]
[366833105,1750495831913,-2715.12328229,0.0001763,2]
[366833106,1750495831924,-2815.58284374,0.00017685,2]
[366833108,1750495831934,-2919.75940895,0.0001774,2]
[366833109,1750495831944,-3027.79050709,0.00017795,2]
[366833110,1750495831954,-3139.81875585,0.0001785,2]
[366833111,1750495831964,-200.0,0.00017871,7]
[366833112,1750495831974,-203.0,0.00017881,5]
[366833113,1750495831984,-189.87,0.00017898,2]
[366833114,1750495831994,-3255.99204981,0.00017905,2]
[366833115,1750495832004,-250.0,0.00017908,2]
[366833116,1750495832014,-631.78,0.00017952,2]
[366833117,1750495832024,-1956.97350255,0.0001796,2]
[366833118,1750495832039,-542.45,0.0001807,2]
[366833120,1750495832048,-1000.0,0.00018089,2]
[366833122,1750495832057,-250.0,0.00018157,2]
[366833124,1750495832067,-600.0,0.00018478,4]
[366833127,1750495832078,-215.0738,0.00018504,2]
[366833130,1750495832102,-1680.0,0.00018803,2]
[366833133,1750495832121,-203.0,0.00018817,6]
[366833136,1750495832140,-150.0,0.00018973,2]
[366833141,1750495832158,-350.0,0.00019,2]
[366833143,1750495832175,-151.0,0.0001943,2]
[366833146,1750495832194,-151.0,0.0001943,2]
[366833149,1750495832214,-1000.0,0.0001943,2]
[366833152,1750495832232,-621.80024345,0.0001943,2]
[366833155,1750495832249,-151.0,0.0001943,2]
[366833158,1750495832266,-300.0,0.0001943,2]
[366833161,1750495832286,-300.0,0.0001943,2]
[366833164,1750495832304,-300.0,0.0001943,2]
[366833166,1750495832316,-300.0,0.0001943,2]
[366833169,1750495832336,-300.0,0.0001943,2]
[366833171,1750495832349,-300.0,0.0001943,2]
[366833174,1750495832365,-300.0,0.0001943,2]
[366833176,1750495832377,-151.0,0.0001943,2]
[366833179,1750495832398,-300.0,0.0001943,2]
[366833182,1750495832413,-151.0,0.0001943,2]
[366833185,1750495832429,-300.0,0.0001943,2]
[366833187,1750495832444,-151.0,0.0001943,2]
[366833190,1750495832460,-151.0,0.0001943,2]
[366833192,1750495832475,-151.0,0.0001943,2]
[366833195,1750495832490,-300.0,0.0001943,2]
[366833198,1750495832505,-151.0,0.0001943,2]
[366833200,1750495832520,-300.0,0.0001943,2]
[366833203,1750495832535,-500.0,0.0001943,2]
[366833205,1750495832549,-151.0,0.0001943,2]
[366833208,1750495832563,-300.0,0.0001943,2]
[366833210,1750495832578,-500.0,0.0001943,2]
[366833211,1750495832592,-151.0,0.0001943,2]
[366833212,1750495832607,-300.0,0.0001943,2]
[366833213,1750495832623,-500.0,0.0001943,2]
[366833214,1750495832639,-300.0,0.0001943,2]
[366833215,1750495832655,-151.0,0.0001943,2]
[366833216,1750495832669,-500.0,0.0001943,2]
[366833218,1750495832686,-151.0,0.0001943,2]
[366833220,1750495832701,-300.0,0.0001943,2]
[366833223,1750495832716,-500.0,0.0001943,2]
[366833225,1750495832732,-151.0,0.0001943,2]
[366833228,1750495832747,-500.0,0.0001943,2]
[366833230,1750495832760,-151.0,0.0001943,2]
[366833233,1750495832775,-500.0,0.0001943,2]
[366833235,1750495832791,-151.0,0.0001943,2]
[366833238,1750495832807,-500.0,0.0001943,2]
[366833241,1750495832822,-151.0,0.0001943,2]
[366833243,1750495832837,-500.0,0.0001943,2]
[366833246,1750495832853,-151.0,0.0001943,2]
[366833249,1750495832868,-500.0,0.0001943,2]
[366833251,1750495832884,-151.0,0.0001943,2]
[366833254,1750495832899,-500.0,0.0001943,2]
[366833256,1750495832913,-151.0,0.0001943,2]
[366833259,1750495832928,-500.0,0.0001943,2]
[366833261,1750495832943,-151.0,0.0001943,2]
[366833264,1750495832958,-500.0,0.0001943,2]
[366833267,1750495832972,-151.0,0.0001943,2]
[366833269,1750495832987,-500.0,0.0001943,2]
[366833272,1750495833001,-151.0,0.0001943,2]
[366833274,1750495833017,-500.0,0.0001943,2]
[366833277,1750495833033,-151.0,0.0001943,2]
[366833279,1750495833052,-500.0,0.0001943,2]
[366833282,1750495833069,-500.0,0.0001943,2]
[366833285,1750495833084,-500.0,0.0001943,2]
[366833287,1750495833099,-500.0,0.0001943,2]
[366833290,1750495833115,-500.0,0.0001943,2]
[366833293,1750495833130,-500.0,0.0001943,2]
[366833295,1750495833147,-500.0,0.0001943,2]
[366833298,1750495833162,-226.13647687,0.0001943,2]
[366833301,1750495833184,-273.86352313,0.0001943,2]
[366833304,1750495833199,-225.23423889,0.0001943,2]
[366833307,1750495833221,-125.17848052,0.0001943,2]
[366833310,1750495833236,-797.28080128,0.00019441,2]
[366833319,1750495833312,-6575.02730265,0.00019441,2]
[366833322,1750495833332,-717.30913889,0.00019441,2]
[366833325,1750495833352,-2431.20714157,0.00019441,2]
[366833327,1750495833371,-3450.90450462,0.00019441,2]
[366833333,1750495833486,-6834.5633425,0.00019441,2]
[366833334,1750495833610,-473.369,0.00019441,2]
[366833336,1750495837510,-2620.33876849,0.00019441,2]
[366833337,1750495837520,-500.0,0.000195,2]
[366833338,1750495837530,-500.0,0.000195,2]
[366833339,1750495837540,-500.73522401,0.000195,2]
[366833340,1750495837550,-514.08355955,0.000195,2]
[366833341,1750495837560,-367.06203703,0.000195,2]
[366833342,1750495837570,-500.0,0.000195,2]
[366833343,1750495837580,-500.0,0.000195,2]
[366833344,1750495837590,-500.0,0.000195,2]
[366833345,1750495837600,-500.0,0.000195,2]
[366833346,1750495837610,-5512.68,0.00019629,2]
[366833347,1750495837620,-203.0,0.00019753,8]
[366833348,1750495837629,-223.0315306,0.00019873,2]
[366833349,1750495837639,-500.0,0.00020048,2]
[366833350,1750495837649,-428.48,0.00020187,2]
[366833351,1750495837659,-501.53938039,0.00020222,2]
[366833352,1750495837668,-1760.784,0.00020222,2]
[366833353,1750495837678,-18355.66240435,0.00020249,2]
[366833354,1750495837688,-2000.0,0.000203,2]
[366833355,1750495837698,-500.0,0.000203,2]
[366833356,1750495837708,-600.0,0.0002033,2]
[366833357,1750495837717,-600.0,0.0002033,2]
[366833358,1750495837727,-1000.0,0.00020351,2]
[366833359,1750495837737,-2351.0,0.00020636,2]
[366833360,1750495837747,-203.0,0.00020689,9]
[366833361,1750495837756,-156.587,0.00020799,2]
[366833362,1750495837766,-1000.0,0.000208,2]
[366833363,1750495837776,-1008.0,0.000208,2]
[366833364,1750495837786,-1000.0,0.000208,2]
[366833365,1750495837796,-1000.0,0.000208,2]
[366833366,1750495837806,-1000.0,0.00020842,2]
[366833367,1750495837816,-300.0,0.000209,7]
[366833368,1750495837826,-1021.0,0.000209,2]
[366833369,1750495837835,-1000.0,0.000209,2]
[366833370,1750495837845,-156.71,0.00020986,2]
[366833371,1750495837854,-400.0,0.00021,2]
[366833372,1750495837864,-1000.0,0.000211,2]
[366833373,1750495837874,-1265.0,0.000211,2]
[366833374,1750495837883,-1000.0,0.000211,2]
[366833375,1750495837893,-1000.0,0.000211,2]
[366833376,1750495837904,-1877.0,0.000211,2]
[366833377,1750495837913,-999.184522,0.00021166,4]
[366833378,1750495837924,-6261.12957893,0.00021172,2]
[366833379,1750495837934,-246.6462,0.00021172,2]
[366833380,1750495837944,-1000.0,0.00021172,2]
[366833381,1750495837954,-2865.01092922,0.00021174,2]
[366833382,1750495838022,-8095.54408715,0.00021174,2]
[366833383,1750495838032,-163.95926574,0.00021174,2]
[366833384,1750495838045,-250.68,0.00021202,2]
[366833385,1750495838055,-231.28369723,0.00021242,2]
[366833386,1750495838064,-7000.00000099,0.00021271,2]
[366833387,1750495838074,-151.0,0.00021272,2]
[366833388,1750495838085,-151.0,0.00021272,2]
[366833389,1750495838095,-202.672194,0.00021272,2]
[366833390,1750495838105,-202.672194,0.00021272,2]
[366833391,1750495838118,-151.0,0.00021272,2]
[366833392,1750495838128,-151.0,0.00021272,2]
[366833393,1750495838138,-1203.190816,0.00021272,2]
[366833394,1750495838148,-1203.190816,0.00021272,2]
[366833395,1750495838158,-36147.7929,0.00021272,2]
[366833396,1750495838168,-500.0,0.00021274,2]
[366833397,1750495838179,-1000.0,0.00021274,2]
[366833398,1750495838189,-188078.3785,0.00021274,2]
[366833399,1750495838199,-157.735098,0.00021274,2]
[366833400,1750495838209,-219.724142,0.00021274,2]
[366833401,1750495838219,-219.724142,0.00021274,2]
[366833402,1750495838229,-151.0,0.00021274,2]
[366833403,1750495838238,-151.0,0.00021274,2]
[366833404,1750495838248,-151.0,0.00021274,2]
[366833405,1750495838258,-151.0,0.00021274,2]
[366833406,1750495838267,-151.224828,0.00021274,2]
[366833407,1750495838277,-414.357737,0.00021274,2]
[366833408,1750495838286,-414.357737,0.00021274,2]
[366833409,1750495838295,-151.0,0.00021274,2]
[366833410,1750495838305,-261.864563,0.00021274,2]
[366833411,1750495838315,-151.0,0.00021274,2]
[366833412,1750495838324,-261.864563,0.00021274,2]
[366833413,1750495838334,-202.672194,0.00021274,2]
[366833414,1750495838344,-151.0,0.00021274,2]
[366833415,1750495838354,-202.672194,0.00021274,2]
[366833416,1750495838364,-151.0,0.00021274,2]
[366833417,1750495838374,-165.10763999,0.00021274,2]
[366833418,1750495838384,-151.0,0.00021274,2]
[366833419,1750495838394,-305.69658062,0.00021274,2]
[366833420,1750495838404,-1203.190816,0.00021274,2]
[366833421,1750495838413,-1203.190816,0.00021274,2]
[366833422,1750495838423,-151.0,0.00021274,2]
[366833423,1750495838433,-2000.0,0.00021328,2]
[366833424,1750495838442,-43771.3999019,0.0002137,2]
[366833425,1750495838452,-151.0,0.0002137,2]
[366833426,1750495838461,-192.521954,0.0002137,2]
[366833427,1750495838471,-219.724142,0.0002137,2]
[366833428,1750495838480,-219.724142,0.0002137,2]
[366833429,1750495838712,-151.0,0.0002137,2]
[366833430,1750495838723,-151.0,0.0002137,2]
[366833431,1750495838734,-151.390414,0.0002137,2]
[366833432,1750495838745,-151.0,0.0002137,2]
[366833433,1750495838756,-151.0,0.0002137,2]
[366833434,1750495838766,-414.357737,0.0002137,2]
[366833435,1750495838776,-414.357737,0.0002137,2]
[366833436,1750495838785,-151.0,0.0002137,2]
[366833437,1750495838794,-261.864563,0.0002137,2]
[366833438,1750495838803,-151.0,0.0002137,2]
[366833439,1750495838812,-261.864563,0.0002137,2]
[366833440,1750495838821,-202.672194,0.0002137,2]
[366833441,1750495838830,-152.020867,0.0002137,2]
[366833442,1750495838840,-202.672194,0.0002137,2]
[366833443,1750495838849,-151.0,0.0002137,2]
[366833444,1750495838859,-25743.2772609,0.0002137,2]
[366833445,1750495838869,-151.0,0.0002137,2]
[366833446,1750495838878,-1203.190816,0.0002137,2]
[366833447,1750495838886,-1203.190816,0.0002137,2]
[366833448,1750495838896,-151.271312,0.0002137,2]
[366833449,1750495838906,-150.0,0.00021372,2]
[366833450,1750495838916,-500.35786531,0.00021373,2]
[366833451,1750495838925,-180.00973254,0.00021373,2]
[366833452,1750495838935,-332.5226646,0.00021373,2]
[366833453,1750495838945,-500.0,0.00021373,2]
[366833454,1750495838954,-502.54613793,0.00021373,2]
[366833455,1750495838963,-500.0,0.00021373,2]
[366833456,1750495838973,-164.46225868,0.00021373,2]
[366833457,1750495838982,-160.14441152,0.00021373,2]
[366833458,1750495838992,-500.0,0.00021373,2]
[366833459,1750495839001,-500.0,0.00021373,2]
[366833460,1750495839011,-500.0,0.00021373,2]
[366833461,1750495839020,-500.0,0.00021373,2]
[366833462,1750495839030,-501.05248587,0.00021373,2]
[366833463,1750495839043,-160.1754991,0.00021373,2]
[366833464,1750495839052,-506.08774347,0.00021373,2]
[366833465,1750495839062,-163.94176436,0.00021373,2]
[366833466,1750495839071,-160.13876172,0.00021373,2]
[366833467,1750495839080,-160.1746957,0.00021373,2]
[366833468,1750495839089,-198.6303441,0.00021373,2]
[366833469,1750495839099,-260.60423954,0.00021373,2]
[366833470,1750495839108,-501.07980569,0.00021373,2]
[366833471,1750495839118,-160.17426421,0.00021373,2]
[366833472,1750495839127,-333.40548256,0.00021373,2]
[366833473,1750495839137,-513.18682114,0.00021373,2]
[366833474,1750495839147,-500.0,0.00021373,2]
[366833475,1750495839156,-501.40507488,0.00021373,2]
[366833476,1750495839166,-452.64772445,0.00021373,2]
[366833477,1750495839176,-212.84939873,0.00021373,2]
[366833478,1750495839186,-500.0,0.00021373,2]
[366833479,1750495839195,-500.60049084,0.00021373,2]
[366833480,1750495839205,-511.89813157,0.00021373,2]
[366833481,1750495839216,-160.17678808,0.00021373,2]
[366833482,1750495839226,-163.28371494,0.00021373,2]
[366833483,1750495839235,-500.0,0.00021373,2]
[366833484,1750495839247,-300.46019589,0.00021373,2]
[366833485,1750495839257,-500.0,0.00021373,2]
[366833486,1750495839267,-500.0,0.00021373,2]
[366833487,1750495839277,-500.0,0.00021373,2]
[366833488,1750495839287,-321.71949622,0.00021373,2]
[366833489,1750495839296,-500.5996675,0.00021373,2]
[366833490,1750495839306,-500.92478388,0.00021373,2]
[366833491,1750495839315,-500.0,0.00021373,2]
[366833492,1750495839325,-500.36811555,0.00021373,2]
[366833493,1750495839334,-500.0,0.00021373,2]
[366833494,1750495839343,-500.0,0.00021373,2]
[366833495,1750495839353,-370.44899747,0.00021373,2]
[366833496,1750495839362,-500.0,0.00021373,2]
[366833497,1750495839372,-355.58169297,0.00021373,2]
[366833498,1750495839381,-1001.2594,0.00021373,2]
[366833499,1750495839391,-290.70092605,0.00021374,2]
[366833500,1750495839401,-352510.15980585,0.00021374,2]
[366833502,1750495839505,-172196.71166557,0.00021374,2]
[366833584,1750495841760,-600.0,0.0002033,2]
[366833585,1750495841770,-437.3,0.00021374,2]
[366833628,1750495843690,-392.26,0.0002033,2]
[366833646,1750495845577,-150.0,0.00020094,2]
[366833648,1750495845587,-207.74,0.0002033,2]
[366833650,1750495845597,-422.07344171,0.0002033,2]
[366833651,1750495845781,-177.92655829,0.0002033,2]
[366833652,1750495845791,-600.0,0.0002093,5]
[366833653,1750495845801,-600.0,0.0002093,5]
[366833654,1750495845810,-151.0,0.00021274,2]
[366833655,1750495845820,-151.0,0.0002137,2]
[366833656,1750495845829,-9617.03082208,0.00021374,2]
[366833657,1750495845839,-63844.0127849,0.00021374,2]
[366833658,1750495845849,-151.0,0.00021374,2]
[366833660,1750495845859,-151.0,0.00021374,2]
[366833662,1750495845869,-151.0,0.00021374,2]
[366833663,1750495845879,-242.342617,0.00021374,2]
[366833664,1750495845889,-151.0,0.00021374,2]
[366833665,1750495845899,-151.0,0.00021374,2]
[366833667,1750495845907,-151.0,0.00021374,2]
[366833669,1750495845917,-155.62012,0.00021374,2]
[366833671,1750495845927,-151.0,0.00021374,2]
[366833673,1750495845937,-151.0,0.00021374,2]
[366833675,1750495845946,-151.0,0.00021374,2]
[366833677,1750495845955,-151.0,0.00021374,2]
[366833679,1750495845965,-151.0,0.00021374,2]
[366833681,1750495845974,-151.0,0.00021374,2]
[366833683,1750495845984,-151.0,0.00021374,2]
[366833685,1750495845994,-151.0,0.00021374,2]
[366833686,1750495846003,-151.0,0.00021374,2]
[366833687,1750495846013,-151.0,0.00021374,2]
[366833688,1750495846022,-151.0,0.00021374,2]
[366833689,1750495846032,-151.0,0.00021374,2]
[366833690,1750495846046,-315.379423,0.00021374,2]
[366833691,1750495846056,-315.379423,0.00021374,2]
[366833693,1750495846065,-155.564528,0.00021374,2]
[366833694,1750495846074,-315.379423,0.00021374,2]
[366833695,1750495846086,-315.379423,0.00021374,2]
[366833696,1750495846097,-151.0,0.00021374,2]
[366833697,1750495846107,-151.0,0.00021374,2]
[366833698,1750495846120,-1520.647094,0.00021374,2]
[366833699,1750495846130,-1520.647094,0.00021374,2]
[366833700,1750495846140,-1520.647094,0.00021374,2]
[366833701,1750495846149,-1520.647094,0.00021374,2]
[366833702,1750495846159,-151.0,0.00021374,2]
[366833703,1750495846169,-151.23899,0.00021374,2]
[366833704,1750495846180,-6901.933708,0.00021374,2]
[366833705,1750495846190,-6901.933708,0.00021374,2]
[366833706,1750495846199,-6901.933708,0.00021374,2]
[366833707,1750495846210,-6901.933708,0.00021374,2]
[366833708,1750495846220,-151.402275,0.00021374,2]
[366833709,1750495846230,-151.865249,0.00021374,2]
[366833710,1750495846240,-151.0,0.00021374,2]
[366833711,1750495846250,-151.0,0.00021374,2]
[366833712,1750495846260,-264.046825,0.00021374,2]
[366833713,1750495846270,-264.046825,0.00021374,2]
[366833714,1750495846281,-264.046825,0.00021374,2]
[366833715,1750495846293,-264.046825,0.00021374,2]
[366833716,1750495846303,-233.395262,0.00021374,2]
[366833717,1750495846314,-233.395262,0.00021374,2]
[366833718,1750495846324,-233.395262,0.00021374,2]
[366833719,1750495846334,-233.395262,0.00021374,2]
[366833720,1750495846344,-151.0,0.00021374,2]
[366833721,1750495846353,-151.393443,0.00021374,2]
[366833722,1750495846363,-219.724142,0.00021374,2]
[366833723,1750495846373,-219.724142,0.00021374,2]
[366833724,1750495846382,-219.724142,0.00021374,2]
[366833725,1750495846393,-219.724142,0.00021374,2]
[366833726,1750495846403,-151.0,0.00021374,2]
[366833727,1750495846412,-151.0,0.00021374,2]
[366833728,1750495846422,-151.0,0.00021374,2]
[366833729,1750495846432,-151.0,0.00021374,2]
[366833730,1750495846441,-151.0,0.00021374,2]
[366833731,1750495846451,-151.0,0.00021374,2]
[366833732,1750495846461,-151.0,0.00021374,2]
[366833733,1750495846471,-157.741831,0.00021374,2]
[366833734,1750495846481,-414.357737,0.00021374,2]
[366833735,1750495846490,-414.357737,0.00021374,2]
[366833736,1750495846500,-414.357737,0.00021374,2]
[366833737,1750495846510,-414.357737,0.00021374,2]
[366833738,1750495846520,-151.0,0.00021374,2]
[366833739,1750495846530,-151.0,0.00021374,2]
[366833740,1750495846540,-261.864563,0.00021374,2]
[366833741,1750495846550,-261.864563,0.00021374,2]
[366833742,1750495846560,-151.0,0.00021374,2]
[366833743,1750495846570,-151.0,0.00021374,2]
[366833744,1750495846581,-261.864563,0.00021374,2]
[366833745,1750495846590,-261.864563,0.00021374,2]
[366833746,1750495846804,-202.672194,0.00021374,2]
[366833747,1750495846835,-202.672194,0.00021374,2]
[366833748,1750495846845,-202.672194,0.00021374,2]
[366833749,1750495846855,-202.672194,0.00021374,2]
[366833750,1750495846865,-151.0,0.00021374,2]
[366833751,1750495846875,-151.0,0.00021374,2]
[366833752,1750495846884,-151.0,0.00021374,2]
[366833753,1750495846893,-151.0,0.00021374,2]
[366833754,1750495846903,-1203.190816,0.00021374,2]
[366833755,1750495846912,-1203.190816,0.00021374,2]
[366833756,1750495846922,-1203.190816,0.00021374,2]
[366833757,1750495846931,-1203.190816,0.00021374,2]
[366833758,1750495846940,-151.0,0.00021374,2]
[366833759,1750495846950,-151.0,0.00021374,2]
[366833760,1750495846959,-2000.0,0.00021377,2]
[366833761,1750495846969,-200.0,0.00021377,2]
[366833762,1750495846978,-170.26185284,0.00021377,2]
[366833763,1750495846987,-151.0,0.00021385,2]
[366833764,1750495846997,-268.281049,0.00021385,2]
[366833765,1750495847006,-202.672194,0.00021385,2]
[366833766,1750495847020,-202.672194,0.00021385,2]
[366833767,1750495847030,-151.0,0.00021385,2]
[366833768,1750495847043,-151.0,0.00021385,2]
[366833769,1750495847054,-1203.190816,0.00021385,2]
[366833770,1750495847063,-1203.190816,0.00021385,2]
[366833771,1750495847073,-383.0,0.000214,2]
[366833772,1750495847083,-2000.0,0.00021424,2]
[366833773,1750495847093,-305.6965806,0.00021487,2]
[366833774,1750495847102,-6261.12957888,0.00021553,2]
[366833775,1750495847112,-10960.55501628,0.00021555,2]
[366833776,1750495847121,-200.0,0.00021567,2]
[366833777,1750495847131,-150.0,0.00021593,2]
[366833778,1750495847141,-832.40607595,0.00021597,2]
[366833779,1750495847150,-842.73500723,0.00021597,2]
[366833780,1750495847160,-183.87607182,0.00021598,2]
[366833781,1750495847170,-320.67579378,0.00021598,2]
[366833782,1750495847180,-611.0,0.00021601,2]
[366833783,1750495847189,-150.0,0.00021602,2]
[366833784,1750495847199,-150.0,0.00021603,2]
[366833785,1750495847209,-1000.0,0.00021606,2]
[366833786,1750495847219,-1000.0,0.00021611,2]
[366833787,1750495847228,-150.0,0.00021613,2]
[366833788,1750495847238,-150.0,0.00021622,2]
[366833789,1750495847247,-203.0,0.00021625,10]
[366833790,1750495847257,-150.0,0.00021625,2]
[366833791,1750495847267,-150.0,0.00021626,2]
[366833792,1750495847276,-1000.0,0.00021632,2]
[366833793,1750495847287,-151.0,0.00021642,2]
[366833794,1750495847296,-151.0,0.00021642,2]
[366833795,1750495847306,-151.0,0.00021642,2]
[366833796,1750495847316,-957.767967,0.00021642,2]
[366833797,1750495847325,-957.767967,0.00021642,2]
[366833798,1750495847335,-151.0,0.00021644,2]
[366833799,1750495847345,-151.0,0.00021644,2]
[366833800,1750495847354,-190.219232,0.00021644,2]
[366833801,1750495847364,-151.0,0.00021644,2]
[366833802,1750495847373,-151.0,0.00021644,2]
[366833803,1750495847383,-6901.933708,0.00021644,2]
[366833804,1750495847393,-6901.933708,0.00021644,2]
[366833805,1750495847403,-264.046825,0.00021644,2]
[366833806,1750495847412,-264.046825,0.00021644,2]
[366833807,1750495847422,-233.395262,0.00021644,2]
[366833808,1750495847432,-233.395262,0.00021644,2]
[366833809,1750495847442,-151.0,0.00021644,2]
[366833810,1750495847451,-202.672194,0.00021644,2]
[366833811,1750495847461,-202.672194,0.00021644,2]
[366833812,1750495847471,-151.0,0.00021644,2]
[366833813,1750495847481,-226.712739,0.00021644,2]
[366833814,1750495847490,-150.0,0.00021646,2]
[366833815,1750495847500,-150.0,0.00021646,2]
[366833816,1750495847510,-150.0,0.00021649,2]
[366833817,1750495847520,-1203.190816,0.00021649,2]
[366833818,1750495847530,-1203.190816,0.00021649,2]
[366833819,1750495847540,-150.0,0.0002165,2]
[366833820,1750495847553,-293.22941206,0.00021651,2]
[366833821,1750495847563,-150.0,0.00021658,2]
[366833822,1750495847574,-150.0,0.00021663,2]
[366833823,1750495847584,-150.0,0.00021667,2]
[366833824,1750495847594,-150.0,0.00021667,2]
[366833825,1750495847605,-150.0,0.00021668,2]